fUST/lending_fUST_20250520
["ID","MTS","AMOUNT","RATE_DAILY","PERIOD"]
[361661272,1747674645927,-543.57,0.0001863,2]
[361661273,1747674645937,-430.0,0.0001863,2]
[361661274,1747674645947,-430.0,0.0001863,2]
[361661275,1747674645956,-430.0,0.0001863,2]
[361661276,1747674645966,-430.0,0.0001863,2]
[361661277,1747674645977,-390.0,0.0001863,2]
[361661278,1747674645986,-430.0,0.0001863,2]
[361661279,1747674645999,-430.0,0.0001863,2]
[361661280,1747674646009,-522.9,0.0001863,2]
[361661281,1747674646019,-200.52290088,0.0001863,2]
[361661282,1747674646028,-414.02666937,0.0001863,2]
[361661283,1747674646038,-430.0,0.0001863,2]
[361661284,1747674646047,-430.0,0.0001863,2]
[361661285,1747674646056,-430.0,0.0001863,2]
[361661286,1747674646065,-430.0,0.0001863,2]
[361661287,1747674646075,-632.53,0.0001863,2]
[361661288,1747674646085,-500.0,0.0001863,2]
[361661289,1747674646095,-430.0,0.0001863,2]
[361661290,1747674646104,-2035.42,0.0001863,2]
[361661291,1747674646114,-214.53041992,0.0001863,2]
[361661292,1747674646124,-271.2821972,0.0001863,2]
[361661293,1747674646134,-390.0,0.0001863,2]
[361661294,1747674646143,-430.0,0.0001863,2]
[361661295,1747674646153,-430.0,0.0001863,2]
[361661296,1747674646163,-430.0,0.0001863,2]
[361661297,1747674646171,-430.0,0.0001863,2]
[361661298,1747674646181,-410.0,0.0001863,2]
[361661300,1747674646191,-430.0,0.0001863,2]
[361661301,1747674646200,-430.0,0.0001863,2]
[361661302,1747674646210,-430.0,0.0001863,2]
[361661303,1747674646219,-430.0,0.0001863,2]
[361661304,1747674646231,-821.05,0.0001863,2]
[361661305,1747674646240,-430.0,0.0001863,2]
[361661306,1747674646250,-430.0,0.0001863,2]
[361661307,1747674646261,-430.0,0.0001863,2]
[361661308,1747674646270,-509.46108759,0.0001863,2]
[361661309,1747674646279,-430.0,0.0001863,2]
[361661310,1747674646289,-430.0,0.0001863,2]
[361661311,1747674646299,-1233.24,0.0001863,2]
[361661312,1747674646309,-2435.86,0.0001863,2]
[361661313,1747674646319,-432.38652287,0.0001863,2]
[361661314,1747674646328,-1593.19,0.0001863,2]
[361661315,1747674646338,-338.16101512,0.0001863,2]
[361661316,1747674646347,-430.0,0.0001863,2]
[361661317,1747674646357,-430.0,0.0001863,2]
[361661318,1747674646367,-430.0,0.0001863,2]
[361661319,1747674646377,-430.0,0.0001863,2]
[361661320,1747674646387,-430.0,0.0001863,2]
[361661321,1747674646397,-507.91,0.0001863,2]
[361661322,1747674646407,-430.0,0.0001863,2]
[361661323,1747674646418,-430.0,0.0001863,2]
[361661324,1747674646427,-430.0,0.0001863,2]
[361661325,1747674646437,-430.0,0.0001863,2]
[361661326,1747674646447,-430.0,0.0001863,2]
[361661327,1747674646456,-430.0,0.0001863,2]
[361661328,1747674646467,-538.39,0.0001863,2]
[361661329,1747674646478,-430.0,0.0001863,2]
[361661330,1747674646489,-578.39,0.0001863,2]
[361661331,1747674646502,-414.88125176,0.0001863,2]
[361661332,1747674646514,-430.0,0.0001863,2]
[361661333,1747674646524,-430.0,0.0001863,2]
[361661334,1747674646533,-430.0,0.0001863,2]
[361661335,1747674646544,-430.0,0.0001863,2]
[361661336,1747674646553,-501.25,0.0001863,2]
[361661337,1747674646563,-1366.38,0.0001863,2]
[361661338,1747674646574,-430.0,0.0001863,2]
[361661339,1747674646586,-851.05,0.0001863,2]
[361661340,1747674646596,-430.0,0.0001863,2]
[361661341,1747674646606,-430.0,0.0001863,2]
[361661342,1747674646616,-4940.84,0.0001863,2]
[361661343,1747674646625,-430.0,0.0001863,2]
[361661344,1747674646635,-430.0,0.0001863,2]
[361661345,1747674646646,-4549.92,0.0001863,2]
[361661346,1747674646656,-430.0,0.0001863,2]
[361661347,1747674646666,-1741.22,0.0001863,2]
[361661348,1747674646676,-430.0,0.0001863,2]
[361661349,1747674646688,-430.0,0.0001863,2]
[361661350,1747674646700,-430.0,0.0001863,2]
[361661351,1747674646713,-430.0,0.0001863,2]
[361661352,1747674646723,-430.0,0.0001863,2]
[361661353,1747674646735,-430.0,0.0001863,2]
[361661354,1747674646746,-1040.2,0.0001863,2]
[361661355,1747674646756,-430.0,0.0001863,2]
[361661356,1747674646767,-1533.15,0.0001863,2]
[361661357,1747674646776,-1049.35,0.0001863,2]
[361661358,1747674646786,-838.16,0.0001863,2]
[361661359,1747674646796,-430.0,0.0001863,2]
[361661360,1747674646805,-2102.02,0.0001863,2]
[361661361,1747674646815,-215.54966305,0.0001863,2]
[361661362,1747674646825,-430.0,0.0001863,2]
[361661363,1747674646836,-1455.32,0.0001863,2]
[361661364,1747674646847,-341.99279265,0.0001863,2]
[361661365,1747674646856,-6922.52,0.0001863,2]
[361661366,1747674646866,-430.0,0.0001863,2]
[361661367,1747674646877,-430.0,0.0001863,2]
[361661368,1747674646886,-430.0,0.0001863,2]
[361661369,1747674646896,-1703.41,0.0001863,2]
[361661370,1747674646906,-430.0,0.0001863,2]
[361661371,1747674646915,-300.0,0.0001863,2]
[361661372,1747674646925,-430.0,0.0001863,2]
[361661373,1747674646935,-430.0,0.0001863,2]
[361661374,1747674646944,-430.0,0.0001863,2]
[361661375,1747674646954,-430.0,0.0001863,2]
[361661376,1747674646964,-653.3,0.0001863,2]
[361661377,1747674646976,-430.0,0.0001863,2]
[361661378,1747674646985,-1702.5,0.0001863,2]
[361661379,1747674646995,-430.0,0.0001863,2]
[361661380,1747674647006,-430.0,0.0001863,2]
[361661381,1747674647015,-565.05,0.0001863,2]
[361661382,1747674647025,-430.0,0.0001863,2]
[361661383,1747674647034,-430.0,0.0001863,2]
[361661384,1747674647044,-430.0,0.0001863,2]
[361661385,1747674647052,-896.88,0.0001863,2]
[361661386,1747674647062,-430.0,0.0001863,2]
[361661387,1747674647071,-430.0,0.0001863,2]
[361661388,1747674647081,-587.73,0.0001863,2]
[361661389,1747674647091,-430.0,0.0001863,2]
[361661390,1747674647100,-430.0,0.0001863,2]
[361661391,1747674647109,-430.0,0.0001863,2]
[361661392,1747674647119,-2560.66,0.0001863,2]
[361661393,1747674647128,-430.0,0.0001863,2]
[361661394,1747674647138,-3841.56,0.0001863,2]
[361661395,1747674647147,-430.0,0.0001863,2]
[361661396,1747674647158,-696.75,0.0001863,2]
[361661397,1747674647168,-430.0,0.0001863,2]
[361661398,1747674647178,-430.0,0.0001863,2]
[361661399,1747674647189,-430.0,0.0001863,2]
[361661400,1747674647199,-500.0,0.0001863,2]
[361661401,1747674647210,-649.24,0.0001863,2]
[361661402,1747674647222,-360.0,0.0001863,2]
[361661403,1747674647234,-430.0,0.0001863,2]
[361661404,1747674647244,-430.0,0.0001863,2]
[361661405,1747674647253,-430.0,0.0001863,2]
[361661406,1747674647262,-2021.45805585,0.0001863,2]
[361661407,1747674647742,-430.0,0.00018356,2]
[361661408,1747674647752,-273.23,0.0001863,2]
[361661469,1747675030143,204.0,0.00025,120]
[361661470,1747675141645,312.0,0.000273,120]
[361661474,1747675471305,2505.0,0.00027397,120]
[361661527,1747675832029,-960.05583154,0.00013027,2]
[361661529,1747675832041,-606.84252089,0.00013027,2]
[361661532,1747675832052,-3433.10164757,0.00013027,2]
[361661534,1747675832061,-355.858908,0.00013699,2]
[361661536,1747675832070,-818.2604105,0.000149,2]
[361661544,1747675832140,-13260.02236786,0.000149,2]
[361661546,1747675832152,-16521.5986182,0.000149,2]
[361661548,1747675832162,-3452.7533999,0.000149,2]
[361661550,1747675832171,-3452.75339986,0.00015279,2]
[361661552,1747675832182,-3452.75339986,0.00015659,2]
[361661554,1747675832191,-3452.75339986,0.00016038,2]
[361661556,1747675832201,-3452.75339986,0.00016417,2]
[361661558,1747675832210,-3452.75339986,0.00016797,2]
[361661560,1747675832220,-3452.75339986,0.00017176,2]
[361661563,1747675832230,-3452.75339986,0.00017555,2]
[361661564,1747675832239,-3452.75339986,0.00017934,2]
[361661566,1747675832249,-200.46502316,0.00018072,2]
[361661567,1747675832258,-704.81986674,0.00018286,2]
[361661568,1747675832267,-3452.75339986,0.00018314,2]
[361661569,1747675832277,-418.54196151,0.0001835,2]
[361661571,1747675832286,-500.0,0.0001835,2]
[361661573,1747675832295,-500.0,0.0001835,2]
[361661574,1747675832304,-500.0,0.0001835,2]
[361661575,1747675832313,-500.0,0.0001835,2]
[361661583,1747675832435,-500.0,0.0001835,2]
[361661585,1747675832444,-445.38986028,0.0001835,2]
[361661586,1747675832453,-500.0,0.0001835,2]
[361661588,1747675832462,-500.0,0.0001835,2]
[361661589,1747675832471,-500.0,0.0001835,2]
[361661590,1747675832479,-500.0,0.0001835,2]
[361661591,1747675832488,-500.0,0.0001835,2]
[361661592,1747675832498,-500.0,0.0001835,2]
[361661593,1747675832507,-500.0,0.0001835,2]
[361661594,1747675832516,-500.0,0.0001835,2]
[361661595,1747675832525,-500.0,0.0001835,2]
[361661596,1747675832533,-448.63582028,0.0001835,2]
[361661597,1747675832543,-500.0,0.0001835,2]
[361661598,1747675832552,-500.0,0.0001835,2]
[361661599,1747675832561,-500.0,0.0001835,2]
[361661600,1747675832570,-500.0,0.0001835,2]
[361661601,1747675832579,-500.0,0.0001835,2]
[361661602,1747675832588,-500.0,0.0001835,2]
[361661603,1747675832597,-500.0,0.0001835,2]
[361661604,1747675832607,-500.0,0.0001835,2]
[361661605,1747675832616,-500.0,0.0001835,2]
[361661606,1747675832625,-500.0,0.0001835,2]
[361661607,1747675832634,-500.0,0.0001835,2]
[361661608,1747675832643,-500.0,0.0001835,2]
[361661609,1747675832653,-500.0,0.0001835,2]
[361661610,1747675832662,-500.0,0.0001835,2]
[361661611,1747675832672,-500.0,0.0001835,2]
[361661612,1747675832683,-500.0,0.0001835,2]
[361661613,1747675832692,-500.0,0.0001835,2]
[361661614,1747675832701,-500.0,0.0001835,2]
[361661615,1747675832710,-500.0,0.0001835,2]
[361661616,1747675832719,-500.0,0.0001835,2]
[361661617,1747675832728,-500.0,0.0001835,2]
[361661618,1747675832737,-500.00000001,0.0001835,2]
[361661619,1747675832746,-300.0,0.0001835,2]
[361661620,1747675832754,-163.03051647,0.00018355,2]
[361661621,1747675832764,-500.0,0.00018355,2]
[361661622,1747675832774,-500.0,0.00018355,2]
[361661623,1747675832783,-500.0,0.00018355,2]
[361661624,1747675832792,-500.0,0.00018355,2]
[361661625,1747675832801,-500.0,0.00018355,2]
[361661626,1747675832810,-500.0,0.00018355,2]
[361661627,1747675832819,-500.0,0.00018355,2]
[361661628,1747675832828,-500.0,0.00018355,2]
[361661629,1747675832837,-378.97872743,0.00018355,2]
[361661630,1747675832846,-500.0,0.00018355,2]
[361661631,1747675832855,-500.0,0.00018355,2]
[361661632,1747675832864,-545.40528112,0.00018355,2]
[361661633,1747675832873,-406.07733257,0.00018356,2]
[361661634,1747675832882,-416.15881375,0.00018356,2]
[361661635,1747675832891,-405.48983233,0.00018356,2]
[361661636,1747675832900,-430.0,0.00018356,2]
[361661637,1747675832911,-1036.89,0.00018356,2]
[361661638,1747675832920,-430.0,0.00018356,2]
[361661639,1747675832930,-430.0,0.00018356,2]
[361661640,1747675832940,-430.0,0.00018356,2]
[361661641,1747675832951,-430.0,0.00018356,2]
[361661642,1747675832960,-401.63623618,0.00018356,2]
[361661643,1747675832969,-430.0,0.00018356,2]
[361661644,1747675832978,-358.0,0.00018356,2]
[361661645,1747675832989,-430.0,0.00018356,2]
[361661646,1747675832998,-430.0,0.00018356,2]
[361661647,1747675833007,-430.0,0.00018356,2]
[361661648,1747675833017,-404.87553884,0.00018356,2]
[361661649,1747675833027,-355.69498018,0.00018356,2]
[361661650,1747675833036,-380.0,0.00018356,2]
[361661651,1747675833046,-430.0,0.00018356,2]
[361661652,1747675833055,-354.66991659,0.00018356,2]
[361661653,1747675833065,-430.0,0.00018356,2]
[361661654,1747675833074,-497.23957926,0.00018356,2]
[361661655,1747675833084,-489.96,0.00018356,2]
[361661656,1747675833094,-336.39791126,0.00018356,2]
[361661657,1747675833104,-473.08194016,0.00018356,2]
[361661658,1747675833113,-430.0,0.00018356,2]
[361661659,1747675833122,-430.0,0.00018356,2]
[361661660,1747675833133,-554.8385239,0.00018356,2]
[361661661,1747675833142,-430.0,0.00018356,2]
[361661662,1747675833152,-430.0,0.00018356,2]
[361661663,1747675833162,-430.0,0.00018356,2]
[361661664,1747675833172,-430.0,0.00018356,2]
[361661665,1747675833182,-430.0,0.00018356,2]
[361661666,1747675833191,-430.0,0.00018356,2]
[361661667,1747675833200,-350.0,0.00018356,2]
[361661668,1747675833210,-430.0,0.00018356,2]
[361661669,1747675833219,-430.0,0.00018356,2]
[361661670,1747675833229,-430.0,0.00018356,2]
[361661671,1747675833238,-437.63884363,0.00018356,2]
[361661672,1747675833246,-430.0,0.00018356,2]
[361661673,1747675833255,-154.59060824,0.00018356,2]
[361661674,1747675833264,-495.13762339,0.00018356,2]
[361661675,1747675833274,-357.61351071,0.00018356,2]
[361661676,1747675833283,-430.0,0.00018356,2]
[361661677,1747675833292,-430.0,0.00018356,2]
[361661678,1747675833302,-353.6529573,0.00018356,2]
[361661679,1747675833312,-353.88917433,0.00018356,2]
[361661680,1747675833321,-357.7256588,0.00018356,2]
[361661681,1747675833331,-430.0,0.00018356,2]
[361661682,1747675833341,-350.0,0.00018356,2]
[361661683,1747675833350,-669.0,0.00018356,2]
[361661684,1747675833360,-352.75920492,0.00018356,2]
[361661685,1747675833370,-395.30314122,0.00018356,2]
[361661686,1747675833379,-156.055127,0.00018356,2]
[361661687,1747675833388,-430.0,0.00018356,2]
[361661688,1747675833397,-430.0,0.00018356,2]
[361661689,1747675833407,-430.0,0.00018356,2]
[361661690,1747675833417,-430.0,0.00018356,2]
[361661691,1747675833427,-380.88518851,0.00018356,2]
[361661692,1747675833441,-430.0,0.00018356,2]
[361661693,1747675833451,-430.0,0.00018356,2]
[361661694,1747675833460,-430.0,0.00018356,2]
[361661695,1747675833470,-430.0,0.00018356,2]
[361661696,1747675833479,-430.0,0.00018356,2]
[361661697,1747675833489,-430.0,0.00018356,2]
[361661698,1747675833498,-430.0,0.00018356,2]
[361661699,1747675833508,-430.0,0.00018356,2]
[361661700,1747675833518,-310.0,0.00018356,2]
[361661701,1747675833527,-463.82826181,0.00018356,2]
[361661702,1747675833537,-430.0,0.00018356,2]
[361661703,1747675833547,-430.0,0.00018356,2]
[361661704,1747675833556,-488.94354818,0.00018356,2]
[361661705,1747675833565,-430.0,0.00018356,2]
[361661706,1747675833575,-430.0,0.00018356,2]
[361661707,1747675833584,-430.0,0.00018356,2]
[361661708,1747675833593,-430.0,0.00018356,2]
[361661709,1747675833603,-430.0,0.00018356,2]
[361661710,1747675833612,-357.56847809,0.00018356,2]
[361661711,1747675833622,-456.76671382,0.00018356,2]
[361661712,1747675833631,-450.0,0.00018356,2]
[361661713,1747675833641,-430.0,0.00018356,2]
[361661714,1747675833650,-450.95061904,0.00018356,2]
[361661715,1747675833659,-177.43383421,0.00018356,2]
[361661716,1747675833669,-280.0,0.00018356,2]
[361661717,1747675833681,-430.0,0.00018356,2]
[361661718,1747675833690,-510.66976313,0.00018356,2]
[361661719,1747675833700,-428.20381235,0.00018356,2]
[361661720,1747675833709,-450.0,0.00018356,2]
[361661721,1747675833719,-430.0,0.00018356,2]
[361661722,1747675833729,-430.0,0.00018356,2]
[361661723,1747675833738,-430.0,0.00018356,2]
[361661724,1747675833748,-430.0,0.00018356,2]
[361661725,1747675833758,-430.0,0.00018356,2]
[361661726,1747675833767,-430.0,0.00018356,2]
[361661727,1747675833777,-430.0,0.00018356,2]
[361661728,1747675833786,-430.0,0.00018356,2]
[361661729,1747675833795,-430.0,0.00018356,2]
[361661730,1747675833804,-430.0,0.00018356,2]
[361661731,1747675833814,-430.0,0.00018356,2]
[361661732,1747675833823,-430.0,0.00018356,2]
[361661733,1747675833832,-430.0,0.00018356,2]
[361661734,1747675833842,-430.0,0.00018356,2]
[361661735,1747675833852,-430.0,0.00018356,2]
[361661736,1747675833861,-430.0,0.00018356,2]
[361661737,1747675833871,-368.44791685,0.00018356,2]
[361661738,1747675833880,-430.0,0.00018356,2]
[361661739,1747675833890,-294.49944318,0.00018356,2]
[361661740,1747675833902,-430.0,0.00018356,2]
[361661741,1747675833914,-430.0,0.00018356,2]
[361661742,1747675833923,-430.0,0.00018356,2]
[361661743,1747675833936,-330.59362859,0.00018356,2]
[361661744,1747675833947,-414.51731657,0.00018356,2]
[361661745,1747675833956,-432.26426022,0.00018356,2]
[361661746,1747675833966,-430.0,0.00018356,2]
[361661747,1747675833975,-430.0,0.00018356,2]
[361661748,1747675833985,-430.0,0.00018356,2]
[361661749,1747675833996,-445.58329343,0.00018356,2]
[361661750,1747675834007,-407.194135,0.00018356,2]
[361661751,1747675834017,-651.82,0.00018356,2]
[361661752,1747675834027,-217.27514836,0.00018356,2]
[361661753,1747675834037,-430.0,0.00018356,2]
[361661754,1747675834047,-200.05369715,0.00018356,2]
[361661755,1747675834057,-430.0,0.00018356,2]
[361661756,1747675834066,-430.0,0.00018356,2]
[361661757,1747675834075,-430.0,0.00018356,2]
[361661758,1747675834085,-430.0,0.00018356,2]
[361661759,1747675834095,-350.49230863,0.00018356,2]
[361661760,1747675834105,-579.82,0.00018356,2]
[361661761,1747675834115,-430.0,0.00018356,2]
[361661762,1747675834125,-430.0,0.00018356,2]
[361661763,1747675834135,-430.0,0.00018356,2]
[361661764,1747675834145,-430.0,0.00018356,2]
[361661765,1747675834155,-330.0,0.00018356,2]
[361661766,1747675834166,-430.0,0.00018356,2]
[361661767,1747675834175,-430.0,0.00018356,2]
[361661768,1747675834187,-430.0,0.00018356,2]
[361661769,1747675834197,-440.0,0.00018356,2]
[361661770,1747675834208,-430.0,0.00018356,2]
[361661771,1747675834217,-758.75,0.00018356,2]
[361661772,1747675834227,-430.0,0.00018356,2]
[361661773,1747675834236,-430.0,0.00018356,2]
[361661774,1747675834246,-430.0,0.00018356,2]
[361661775,1747675834256,-430.0,0.00018356,2]
[361661776,1747675834265,-430.0,0.00018356,2]
[361661777,1747675834374,-430.0,0.00018356,2]
[361661778,1747675834384,-430.0,0.00018356,2]
[361661779,1747675834393,-380.92719641,0.00018356,2]
[361661780,1747675834403,-430.0,0.00018356,2]
[361661781,1747675834413,-478.85,0.00018356,2]
[361661782,1747675834422,-430.0,0.00018356,2]
[361661783,1747675834434,-414.78280144,0.00018356,2]
[361661784,1747675834444,-430.0,0.00018356,2]
[361661785,1747675834455,-157.67825871,0.00018356,2]
[361661786,1747675834467,-430.0,0.00018356,2]
[361661787,1747675834477,-283.33790363,0.00018356,2]
[361661788,1747675834486,-430.0,0.00018356,2]
[361661789,1747675834495,-430.0,0.00018356,2]
[361661790,1747675834505,-588.26,0.00018356,2]
[361661791,1747675834514,-430.0,0.00018356,2]
[361661792,1747675834523,-430.0,0.00018356,2]
[361661793,1747675834532,-430.0,0.00018356,2]
[361661794,1747675834541,-430.0,0.00018356,2]
[361661795,1747675834550,-501.94,0.00018356,2]
[361661796,1747675834560,-430.0,0.00018356,2]
[361661797,1747675834569,-545.34436985,0.00018356,2]
[361661798,1747675834578,-430.0,0.00018356,2]
[361661799,1747675834587,-758.83,0.00018356,2]
[361661800,1747675834597,-400.30062426,0.00018356,2]
[361661801,1747675834606,-443.26757197,0.00018356,2]
[361661802,1747675834615,-643.13,0.00018356,2]
[361661803,1747675834624,-430.0,0.00018356,2]
[361661804,1747675834634,-430.0,0.00018356,2]
[361661805,1747675834643,-202.61621835,0.00018356,2]
[361661806,1747675834652,-430.0,0.00018356,2]
[361661807,1747675834661,-430.0,0.00018356,2]
[361661808,1747675834671,-430.0,0.00018356,2]
[361661809,1747675834681,-95.45408114,0.00018356,2]
[361661835,1747675837820,-930.80008429,0.00018172,2]
[361661837,1747675837831,-1476.8542889,0.00018172,2]
[361661843,1747675837875,-2592.34562681,0.00018172,2]
[361661845,1747675837885,-300.0,0.00018355,2]
[361661847,1747675837895,-334.54591886,0.00018356,2]
[361661849,1747675837904,-430.0,0.00018356,2]
[361661851,1747675837917,-430.0,0.00018356,2]
[361661853,1747675837926,-430.0,0.00018356,2]
[361661855,1747675837937,-430.0,0.00018356,2]
[361661857,1747675837947,-430.0,0.00018356,2]
[361661859,1747675837956,-672.12,0.00018356,2]
[361661861,1747675837965,-430.0,0.00018356,2]
[361661863,1747675837974,-639.32,0.00018356,2]
[361661865,1747675837983,-430.0,0.00018356,2]
[361661867,1747675837992,-430.0,0.00018356,2]
[361661869,1747675838001,-184.11382341,0.00018356,2]
[361661964,1747675840160,-245.88617659,0.00018356,2]
[361661965,1747675840169,-274.30382515,0.00018356,2]
[361661966,1747675840185,-232.57587802,0.00018356,2]
[361661967,1747675840194,-287.34062158,0.00018356,2]
[361662237,1747675845963,-60.21801109,0.00018356,2]
[361662238,1747675845974,-400.0,0.00018356,2]
[361662239,1747675845984,-430.0,0.00018356,2]
[361662240,1747675845994,-430.0,0.00018356,2]
[361662241,1747675846003,-430.0,0.00018356,2]
[361662242,1747675846018,-430.0,0.00018356,2]
[361662243,1747675846034,-430.0,0.00018356,2]
[361662244,1747675846043,-498.27,0.00018356,2]
[361662245,1747675846052,-430.0,0.00018356,2]
[361662246,1747675846062,-479.33,0.00018356,2]
[361662247,1747675846071,-430.0,0.00018356,2]
[361662249,1747675846190,-284.17375692,0.00018356,2]
[361662250,1747675846203,-430.0,0.00018356,2]
[361662251,1747675846214,-430.0,0.00018356,2]
[361662252,1747675846223,-1865.8,0.00018356,2]
[361662253,1747675846233,-430.0,0.00018356,2]
[361662254,1747675846242,-430.0,0.00018356,2]
[361662255,1747675846251,-1748.63022686,0.00018356,2]
[361662314,1747676754346,172.11995101,0.0002508,120]
[361662546,1747677040303,-5000.0,0.00013027,2]
[361662547,1747677040312,-338.065962,0.00013699,2]
[361662548,1747677040321,-200.0,0.00015709,2]
[361662549,1747677040331,-300.0,0.00015899,2]
[361662550,1747677040342,-1200.0,0.00015899,2]
[361662551,1747677040352,-300.0,0.00015899,2]
[361662552,1747677040361,-5050.57120307,0.000159,2]
[361662553,1747677040371,-5000.0,0.00016,2]
[361662554,1747677040380,-5050.5712028,0.00016245,2]
[361662555,1747677040390,-5050.5712028,0.0001659,2]
[361662556,1747677040399,-5050.5712028,0.00016934,2]
[361662557,1747677040409,-5050.5712028,0.00017279,2]
[361662558,1747677040419,-420.0,0.00017385,2]
[361662559,1747677040428,-420.0,0.00017385,2]
[361662560,1747677040438,-1680.0,0.00017472,2]
[361662561,1747677040447,-500.0,0.00017491,2]
[361662562,1747677040457,-407.8833117,0.00017491,2]
[361662563,1747677040466,-500.0,0.00017491,2]
[361662564,1747677040475,-500.0,0.00017491,2]
[361662565,1747677040485,-428.62233146,0.00017491,2]
[361662566,1747677040495,-258.11360058,0.00017491,2]
[361662567,1747677040505,-500.0,0.00017491,2]
[361662568,1747677040515,-500.0,0.00017491,2]
[361662569,1747677040524,-513.29079479,0.00017491,2]
[361662570,1747677040534,-500.0,0.00017491,2]
[361662571,1747677040543,-500.0,0.00017491,2]
[361662572,1747677040553,-500.0,0.00017491,2]
[361662573,1747677040562,-500.0,0.00017491,2]
[361662574,1747677040571,-500.0,0.00017491,2]
[361662575,1747677040580,-500.0,0.00017491,2]
[361662576,1747677040590,-500.0,0.00017491,2]
[361662577,1747677040600,-500.0,0.00017491,2]
[361662578,1747677040610,-500.0,0.00017491,2]
[361662579,1747677040619,-500.0,0.00017491,2]
[361662580,1747677040628,-500.0,0.00017491,2]
[361662581,1747677040637,-500.0,0.00017491,2]
[361662582,1747677040646,-500.0,0.00017491,2]
[361662583,1747677040655,-570.63225384,0.00017491,2]
[361662584,1747677040665,-500.0,0.00017491,2]
[361662585,1747677040674,-500.0,0.00017491,2]
[361662586,1747677040683,-500.0,0.00017491,2]
[361662587,1747677040692,-500.0,0.00017491,2]
[361662588,1747677040702,-175.48722433,0.00017491,2]
[361662589,1747677040712,-500.0,0.00017491,2]
[361662590,1747677040722,-500.0,0.00017491,2]
[361662591,1747677040731,-500.0,0.00017491,2]
[361662592,1747677040741,-500.0,0.00017491,2]
[361662593,1747677040751,-500.0,0.00017491,2]
[361662594,1747677040760,-500.0,0.00017491,2]
[361662595,1747677040769,-500.0,0.00017491,2]
[361662596,1747677040779,-500.0,0.00017491,2]
[361662597,1747677040788,-500.0,0.00017491,2]
[361662598,1747677040797,-500.0,0.00017491,2]
[361662599,1747677040807,-500.0,0.00017491,2]
[361662600,1747677040816,-500.0,0.00017491,2]
[361662601,1747677040825,-500.0,0.00017491,2]
[361662602,1747677040835,-445.1867469,0.00017491,2]
[361662603,1747677040844,-500.0,0.00017491,2]
[361662604,1747677040854,-500.0,0.00017491,2]
[361662605,1747677040863,-500.0,0.00017491,2]
[361662606,1747677040873,-500.0,0.00017491,2]
[361662607,1747677040882,-500.0,0.00017491,2]
[361662608,1747677040891,-500.0,0.00017491,2]
[361662609,1747677040901,-500.0,0.00017491,2]
[361662610,1747677040911,-500.0,0.00017491,2]
[361662611,1747677040920,-500.0,0.00017491,2]
[361662612,1747677040930,-549.99999999,0.00017491,2]
[361662613,1747677040940,-500.0,0.00017491,2]
[361662614,1747677040949,-500.0,0.00017491,2]
[361662615,1747677040959,-500.0,0.00017491,2]
[361662616,1747677040969,-500.0,0.00017491,2]
[361662617,1747677040978,-500.0,0.00017491,2]
[361662618,1747677040987,-500.0,0.00017491,2]